bitfinex-derivatives/quotes_BTCF0:USTF0_20251111
["timestamp","ask_amount","ask_price","bid_price","bid_amount"]
[1762895268310,0.31609786,102870.0,102860.0,0.04618]
[1762895268705,0.31609786,102870.0,102860.0,0.02345]
[1762895269315,0.31609786,102870.0,102860.0,0.001]
[1762895269512,0.31609786,102870.0,102860.0,0.02345]
[1762895270309,0.31609786,102870.0,102860.0,0.001]
[1762895270516,0.1547848,102860.0,102850.0,0.02640681]
[1762895270719,0.84216992,102860.0,102850.0,0.02640681]
[1762895271920,0.84216992,102860.0,102850.0,0.00014598]
[1762895272224,0.1547942,102850.0,102840.0,0.02626083]
[1762895272416,0.1548037,102840.0,102830.0,0.36074543]
[1762895272624,0.31259626,102840.0,102830.0,0.26346783]
[1762895273004,0.31259626,102840.0,102830.0,0.22845339]
[1762895273205,0.31259626,102840.0,102830.0,0.32573659]
[1762895273819,0.31259626,102840.0,102830.0,0.16794403]
[1762895274207,0.68435626,102840.0,102830.0,0.32573659]
[1762895274411,0.5265637,102840.0,102830.0,0.32573659]
[1762895274611,0.5265637,102840.0,102830.0,0.22845339]
[1762895275014,0.42929,102840.0,102830.0,0.32573659]
[1762895275519,0.5265637,102840.0,102830.0,0.32573659]
[1762895275818,0.5285637,102840.0,102830.0,0.32573659]
[1762895276321,0.5285637,102840.0,102830.0,0.07066083]
[1762895276525,0.5285637,102840.0,102830.0,0.22845339]
[1762895276711,0.68635626,102840.0,102830.0,0.32573659]
[1762895277013,0.5285637,102840.0,102830.0,0.32573659]
[1762895277213,0.5285637,102840.0,102830.0,0.22845339]
[1762895277610,0.68635626,102840.0,102830.0,0.22845339]
[1762895277806,0.68635626,102840.0,102830.0,0.07066083]
[1762895278020,0.68635626,102840.0,102830.0,0.22845339]
[1762895278222,0.68635626,102840.0,102830.0,0.20219256]
[1762895279616,0.68635626,102840.0,102830.0,0.29947566]
[1762895280217,0.68635626,102840.0,102830.0,0.17949256]
[1762895280416,0.68635626,102840.0,102830.0,0.20575339]
[1762895280611,0.68635626,102840.0,102830.0,0.22714339]
[1762895281319,0.68635626,102840.0,102830.0,0.20088256]
[1762895281515,0.1548531,102830.0,102820.0,0.02635229]
[1762895281922,0.31264566,102830.0,102820.0,0.20140854]
[1762895282421,0.31264566,102830.0,102820.0,0.22761485]
[1762895282617,0.31264566,102830.0,102820.0,0.02634882]
[1762895283814,0.31264566,102830.0,102820.0,0.00014598]
[1762895284020,0.31364566,102830.0,102820.0,0.00014598]
[1762895284623,0.31464566,102830.0,102820.0,0.00014598]
[1762895284814,0.31464566,102830.0,102820.0,0.02222598]
[1762895285621,0.61825686,102830.0,102820.0,8e-08]
[1762895286319,0.30267174,102830.0,102820.0,0.04347008]
[1762895286514,0.4604643,102830.0,102820.0,0.04347008]
[1762895286824,0.7878343,102830.0,102820.0,8e-08]
[1762895287317,0.94562686,102830.0,102820.0,8e-08]
[1762895289019,0.78792898,102830.0,102820.0,8e-08]
[1762895293714,0.41624898,102830.0,102820.0,8e-08]
[1762895294121,0.78792898,102830.0,102820.0,8e-08]
[1762895294629,0.1125431,102830.0,102820.0,0.29864992]
[1762895294925,0.04631,102830.0,102820.0,0.31162992]
[1762895295523,0.002,102830.0,102820.0,0.33783276]
[1762895295924,0.002,102830.0,102820.0,0.3728472]
[1762895296120,0.002,102830.0,102820.0,0.79916602]
[1762895296325,0.002,102830.0,102820.0,0.76415158]
[1762895296929,0.002,102830.0,102820.0,1.00727158]
[1762895297823,0.002,102830.0,102820.0,0.84938434]
[1762895298023,0.002,102830.0,102820.0,0.76415158]
[1762895298426,0.002,102830.0,102820.0,0.60727158]
[1762895298732,0.002,102830.0,102820.0,0.97895158]
[1762895298932,0.002,102830.0,102820.0,1.37895158]
[1762895300131,0.002,102830.0,102820.0,1.13583158]
[1762895300429,0.002,102830.0,102820.0,1.37895158]
[1762895300626,0.002,102830.0,102820.0,1.13583158]
[1762895300930,0.002,102830.0,102820.0,1.37895158]
[1762895301125,0.002,102830.0,102820.0,1.13583158]
[1762895301532,0.002,102830.0,102820.0,1.37895158]
[1762895302030,0.002,102830.0,102820.0,0.97895158]
[1762895302233,0.002,102830.0,102820.0,0.73583158]
[1762895302421,0.002,102830.0,102820.0,0.97895158]
[1762895302628,0.00014598,102850.0,102840.0,0.1531436]
[1762895302832,0.00014598,102850.0,102840.0,0.33717382]
[1762895303130,0.02236598,102850.0,102840.0,0.33717382]
[1762895303333,0.04447598,102850.0,102840.0,0.17928658]
[1762895303627,0.04469598,102850.0,102840.0,0.33717382]
[1762895303826,0.06164598,102850.0,102840.0,0.33817382]
[1762895304128,0.15891018,102850.0,102840.0,0.07175298]
[1762895304330,0.31679742,102850.0,102840.0,0.07175298]
[1762895304532,0.1555536,102840.0,102830.0,0.36077783]
[1762895304826,0.1555536,102840.0,102830.0,0.20289059]
[1762895305025,0.1555536,102840.0,102830.0,0.36077783]
[1762895305933,0.1555536,102840.0,102830.0,0.26349753]
[1762895306134,0.1555536,102840.0,102830.0,0.17775041]
[1762895306324,0.1555536,102840.0,102830.0,0.17003141]
[1762895306525,0.1555536,102840.0,102830.0,0.32791865]
[1762895306834,0.1555536,102840.0,102830.0,0.17003141]
[1762895307132,0.1555536,102840.0,102830.0,0.16903141]
[1762895307327,0.1565536,102840.0,102830.0,0.16903141]
[1762895307526,0.1565536,102840.0,102830.0,0.16803141]
[1762895309233,0.05928,102840.0,102830.0,0.16803141]
[1762895309430,0.05928,102840.0,102830.0,0.32591865]
[1762895309739,0.1565536,102840.0,102830.0,0.33647865]
[1762895309933,0.05928,102840.0,102830.0,0.33647865]
[1762895310835,0.001,102840.0,102830.0,0.33647865]
[1762895311132,0.001,102840.0,102830.0,0.5292232]
[1762895311333,0.001,102840.0,102830.0,0.37133596]
[1762895312440,0.001,102840.0,102830.0,0.77233491]
[1762895312735,0.00036598,102850.0,102840.0,0.1521436]
[1762895312934,0.00036598,102850.0,102840.0,0.86556765]
[1762895314136,0.00336598,102850.0,102840.0,0.70768041]
[1762895314635,0.00236598,102850.0,102840.0,0.70768041]
[1762895315336,0.02258598,102850.0,102840.0,0.70768041]
[1762895315531,0.02358598,102850.0,102840.0,0.70768041]
[1762895318334,0.04569598,102850.0,102840.0,0.70768041]
[1762895319046,0.02358598,102850.0,102840.0,0.70768041]
[1762895319341,0.00136598,102850.0,102840.0,0.70768041]
[1762895319639,0.00136598,102850.0,102840.0,0.86556765]
[1762895319839,0.02358598,102850.0,102840.0,0.54979317]
[1762895320039,0.04569598,102850.0,102840.0,0.70768041]
[1762895321440,0.04569598,102850.0,102840.0,0.74253772]
[1762895322342,0.04569598,102850.0,102840.0,0.71640815]
[1762895322937,0.00136598,102850.0,102840.0,0.87429539]
[1762895323439,0.00136598,102850.0,102840.0,0.76892981]
[1762895323636,0.00114598,102850.0,102840.0,0.76892981]
[1762895323832,0.00114598,102850.0,102840.0,0.89195974]
[1762895325232,0.09003,102860.0,102850.0,0.1537042]
[1762895325438,0.09003,102860.0,102850.0,0.38162033]
[1762895325439,0.02003,102860.0,102850.0,0.38162033]
[1762895325640,0.03617,102870.0,102860.0,0.0972547]
[1762895325844,0.05828,102870.0,102860.0,0.71394654]
[1762895326342,0.01395,102870.0,102860.0,0.71394654]
[1762895326529,0.01395,102870.0,102860.0,0.6789687]
[1762895326736,0.03617,102870.0,102860.0,0.6789687]
[1762895327037,0.05928,102870.0,102860.0,0.6789687]
[1762895327239,0.05928,102870.0,102860.0,0.71392137]
[1762895327743,0.01495,102870.0,102860.0,2.21392137]
[1762895327946,0.01495,102870.0,102860.0,2.58953528]
[1762895328134,0.003,102870.0,102860.0,2.53706852]
[1762895328334,0.003,102870.0,102860.0,2.58946411]
[1762895328533,0.003,102870.0,102860.0,2.18853687]
[1762895328938,0.001,102870.0,102860.0,2.43157687]
[1762895329136,0.002,102870.0,102860.0,2.43157687]
[1762895329740,0.01434,102870.0,102860.0,2.43157687]
[1762895330040,0.05812,102870.0,102860.0,2.17889753]
[1762895330947,0.03675,102870.0,102860.0,2.42193753]
[1762895331648,0.05812,102870.0,102860.0,2.02101029]
[1762895331847,0.05812,102870.0,102860.0,2.17889753]
[1762895332640,0.03675,102870.0,102860.0,2.17889753]
[1762895333141,0.05812,102870.0,102860.0,2.17889753]
[1762895333341,0.03675,102870.0,102860.0,2.17889753]
[1762895333951,0.01434,102870.0,102860.0,2.17889753]
[1762895336346,0.03675,102870.0,102860.0,2.17889753]
[1762895339145,0.01434,102870.0,102860.0,2.33678477]
[1762895339456,0.01472,102870.0,102860.0,2.17889753]
[1762895339658,0.001,102870.0,102860.0,2.33678477]
[1762895340174,0.06049598,102880.0,102870.0,0.0972448]
[1762895340458,0.07585,102890.0,102880.0,0.0972353]
[1762895340658,0.07585,102890.0,102880.0,0.92163128]
[1762895340956,0.01395,102900.0,102890.0,0.0972259]
[1762895341144,0.01395,102900.0,102890.0,0.50017881]
[1762895341345,0.01372,102910.0,102900.0,0.0972164]
[1762895341558,0.01372,102910.0,102900.0,0.87136931]
[1762895341858,0.01372,102910.0,102900.0,1.11432931]
[1762895342051,0.01372,102910.0,102900.0,0.87136931]
[1762895342450,0.03581598,102920.0,102910.0,0.097207]
[1762895342659,0.00014598,102920.0,102910.0,0.31608476]
[1762895342953,0.00014598,102920.0,102910.0,0.31704107]
[1762895342954,0.01386598,102920.0,102910.0,0.31704107]
[1762895343153,0.01386598,102920.0,102910.0,0.35182982]
[1762895344050,0.01386598,102920.0,102910.0,0.35282982]
[1762895344250,0.01386598,102920.0,102910.0,0.30052276]
[1762895344961,0.00014598,102920.0,102910.0,0.30052276]
[1762895345152,0.01372,102950.0,102940.0,0.0971786]
[1762895345350,0.01372,102960.0,102950.0,0.0971692]
[1762895345561,0.01372,102960.0,102950.0,0.28108885]
[1762895346362,0.01372,102960.0,102950.0,0.43897609]
[1762895346557,0.01386598,102970.0,102960.0,0.0971598]
[1762895346859,0.01386598,102970.0,102960.0,0.71540558]
[1762895347045,0.05771598,102970.0,102960.0,0.71540558]
[1762895347253,0.01386598,102970.0,102960.0,0.95820558]
[1762895347453,0.00014598,102970.0,102960.0,0.95820558]
[1762895347964,0.01386598,102970.0,102960.0,0.74143799]
[1762895348163,0.00014598,102970.0,102960.0,0.74143799]
[1762895348556,8e-08,102970.0,102960.0,0.74143799]
[1762895348756,8e-08,102970.0,102960.0,1.23855837]
[1762895348959,0.03567,102990.0,102980.0,0.34430668]
[1762895349160,0.05757,102990.0,102980.0,0.71534668]
[1762895350253,0.03567,102990.0,102980.0,0.71534668]
[1762895350562,0.04067,102990.0,102980.0,0.71534668]
[1762895350966,0.04067,102990.0,102980.0,0.66471995]
[1762895351363,0.06257,102990.0,102980.0,0.66471995]
[1762895352054,0.01872,102990.0,102980.0,0.66471995]
[1762895352255,0.04067,102990.0,102980.0,0.66471995]
[1762895352455,0.06257,102990.0,102980.0,0.66471995]
[1762895354862,0.05957,102990.0,102980.0,0.66471995]
[1762895355064,0.06157,102990.0,102980.0,0.66471995]
[1762895355561,0.06057,102990.0,102980.0,0.66471995]
[1762895356558,0.01672,102990.0,102980.0,0.66471995]
[1762895357462,0.05771598,103000.0,102990.0,0.0971314]
[1762895357667,0.05771598,103000.0,102990.0,0.29367045]
[1762895358867,0.05871598,103000.0,102990.0,0.29367045]
[1762895359069,0.06071598,103000.0,102990.0,0.29367045]
[1762895360561,0.03881598,103000.0,102990.0,0.29367045]
[1762895360863,0.06097598,103000.0,102990.0,0.29367045]
[1762895361267,0.03881598,103000.0,102990.0,0.4902095]
[1762895361474,0.06097598,103000.0,102990.0,0.29367045]
[1762895365170,0.06097598,103000.0,102990.0,0.66439045]
[1762895368768,0.15809818,103000.0,102990.0,0.19653905]
[1762895368971,0.05675,102990.0,102980.0,0.31951176]
[1762895369169,0.05675,102990.0,102980.0,0.29367265]
[1762895369365,0.05675,102990.0,102980.0,0.31951176]
[1762895369970,0.05675,102990.0,102980.0,0.12297271]
[1762895370175,0.05675,102990.0,102980.0,0.31951176]
[1762895370576,0.1538816,102990.0,102980.0,0.31951176]
[1762895370871,0.05675,102980.0,102970.0,0.72505763]
[1762895371072,0.05675,102980.0,102970.0,0.69034674]
[1762895371371,0.1538912,102980.0,102970.0,0.19668503]
[1762895371575,0.05675,102980.0,102970.0,0.29383563]
[1762895372170,0.05675,102980.0,102970.0,0.31967474]
[1762895372370,0.1538912,102980.0,102970.0,0.22352414]
[1762895372671,0.1538912,102980.0,102970.0,0.35538563]
[1762895372973,0.1538912,102980.0,102970.0,0.25823503]
[1762895373170,0.1538912,102980.0,102970.0,0.03585687]
[1762895373476,0.1538912,102980.0,102970.0,0.06197214]
[1762895373675,0.1538912,102980.0,102970.0,0.06097214]
[1762895374079,0.1538912,102980.0,102970.0,0.15812274]
[1762895374376,0.1538912,102980.0,102970.0,0.13200747]
[1762895377766,0.05675,102980.0,102970.0,0.18407381]
[1762895377970,0.05675,102980.0,102970.0,0.38061286]
[1762895378372,0.1538911,102980.0,102970.0,0.13200747]
[1762895378572,0.1538911,102980.0,102970.0,0.03485687]
[1762895378773,0.1538911,102980.0,102970.0,0.13200757]
[1762895378976,0.1538911,102980.0,102970.0,0.08692321]
[1762895379177,0.1538911,102980.0,102970.0,0.06102126]
[1762895379376,0.1538911,102980.0,102970.0,0.02631037]
[1762895380781,0.1538911,102980.0,102970.0,0.12346097]
[1762895381081,0.1538911,102980.0,102970.0,0.28081074]
[1762895381082,0.5245711,102980.0,102970.0,0.28081074]
[1762895381281,0.68292087,102980.0,102970.0,0.12346097]
[1762895381787,0.68392087,102980.0,102970.0,0.28081074]
[1762895382479,0.5265711,102980.0,102970.0,0.18366014]
[1762895382875,0.68392087,102980.0,102970.0,0.18366014]
[1762895383388,0.68392087,102980.0,102970.0,0.28081084]
[1762895383978,0.68392087,102980.0,102970.0,0.18366014]
[1762895385083,0.68392087,102980.0,102970.0,0.28081074]
[1762895386685,0.68392087,102980.0,102970.0,0.18366014]
[1762895387485,0.68392087,102980.0,102970.0,0.28081074]
[1762895390678,0.68392087,102980.0,102970.0,0.28081084]
[1762895391679,0.05875,102980.0,102970.0,0.28081084]
[1762895391888,0.1558912,102980.0,102970.0,0.28081084]
[1762895392091,0.5265712,102980.0,102970.0,0.28081084]
[1762895392391,0.42943,102980.0,102970.0,0.31552173]
[1762895392884,0.5265712,102980.0,102970.0,0.21837103]
[1762895393089,0.5265712,102980.0,102970.0,0.18366014]
[1762895393890,0.5265712,102980.0,102970.0,0.21837103]
[1762895394387,0.5265712,102980.0,102970.0,0.31552163]
[1762895396194,0.5265712,102980.0,102970.0,0.28935724]
[1762895396687,0.68392097,102980.0,102970.0,0.03485687]
[1762895396885,0.68392097,102980.0,102970.0,0.19220664]
[1762895397491,0.68392097,102980.0,102970.0,0.21837876]
[1762895398185,0.68392097,102980.0,102970.0,0.19220664]
[1762895398382,0.68392097,102980.0,102970.0,0.28935734]
[1762895400191,0.68392097,102980.0,102970.0,0.34142368]
[1762895400393,0.5265712,102980.0,102970.0,0.34142368]
[1762895401089,0.51391909,102980.0,102970.0,0.34142368]
[1762895402085,0.67126886,102980.0,102970.0,0.24427298]
[1762895402488,0.67126886,102980.0,102970.0,0.34142358]
[1762895402682,0.51391909,102980.0,102970.0,0.34142358]
[1762895402891,0.51391909,102980.0,102970.0,0.30671269]
[1762895404491,0.41677789,102980.0,102970.0,0.30671269]
[1762895404698,0.41669789,102980.0,102970.0,0.30671269]
[1762895405392,0.51383909,102980.0,102970.0,0.30671269]
[1762895407492,0.04609789,102980.0,102970.0,0.30671269]
[1762895407797,0.04609789,102980.0,102970.0,0.85262501]
[1762895407995,0.01504,102980.0,102970.0,0.85262501]
[1762895408296,0.01504,102980.0,102970.0,0.86941001]
[1762895408795,0.01304,102990.0,102980.0,0.0971412]
[1762895409099,0.01304,102990.0,102980.0,0.32436971]
[1762895409398,0.03538,102990.0,102980.0,0.63906925]
[1762895409693,0.01304,102990.0,102980.0,0.63906925]
[1762895409898,0.03538,102990.0,102980.0,0.63906925]
[1762895410900,0.05677,102990.0,102980.0,0.32425778]
[1762895411090,0.01304,102990.0,102980.0,0.48149562]
[1762895411392,0.03620598,103000.0,102990.0,0.0971318]
[1762895411596,0.01386598,103000.0,102990.0,0.85204622]
[1762895412400,0.05759598,103000.0,102990.0,0.85204622]
[1762895412597,0.05759598,103000.0,102990.0,0.83446319]
[1762895412598,0.05859598,103000.0,102990.0,0.83446319]
[1762895413586,0.05959598,103000.0,102990.0,0.83446319]
[1762895414194,0.05959598,103000.0,102990.0,0.86931403]
[1762895414596,0.05959598,103000.0,102990.0,0.86927403]
[1762895416899,0.01586598,103000.0,102990.0,0.86927403]
[1762895417204,0.05959598,103000.0,102990.0,0.86927403]
[1762895418199,0.05959598,103000.0,102990.0,0.81697832]
[1762895418792,0.05959598,103000.0,102990.0,0.78212748]
[1762895419396,0.05959598,103000.0,102990.0,0.81694201]
[1762895420100,0.05959598,103000.0,102990.0,0.78212748]
[1762895421408,0.05959598,103000.0,102990.0,0.81693836]
[1762895421605,0.01271,103020.0,102990.0,1.02484748]
[1762895421901,1e-07,103020.0,103010.0,0.46388429]
[1762895422211,0.06299,103030.0,103020.0,0.0971035]
[1762895422420,0.01751,103030.0,103020.0,0.49851851]
[1762895422616,0.01751,103030.0,103020.0,0.46374278]
[1762895423013,0.06299,103030.0,103020.0,0.46374278]
[1762895423408,0.06299,103030.0,103020.0,0.83418278]
[1762895424313,0.06399,103030.0,103020.0,0.86892533]
[1762895424517,0.06499,103030.0,103020.0,0.86892533]
[1762895424817,0.06399,103030.0,103020.0,0.86892533]
[1762895425915,0.06399,103030.0,103020.0,0.86888533]
[1762895426515,0.06399,103030.0,103020.0,0.81672173]
[1762895428423,0.06399,103030.0,103020.0,0.81668173]
[1762895428723,0.06399,103030.0,103020.0,0.28908389]
[1762895429018,0.06399,103030.0,103020.0,0.3151207]
[1762895429820,0.06399,103030.0,103020.0,0.47235854]
[1762895430017,0.01851,103030.0,103020.0,0.44632173]
[1762895430217,0.05855484,103040.0,103030.0,0.0970941]
[1762895430416,0.05855484,103040.0,103030.0,0.68544307]
[1762895430612,0.03635484,103040.0,103030.0,0.65940687]
[1762895430813,0.01307484,103040.0,103030.0,0.65940687]
[1762895431013,0.03635484,103040.0,103030.0,0.65940687]
[1762895431522,0.05846,103060.0,103040.0,0.0970846]
[1762895431722,0.05846,103060.0,103050.0,0.80789733]
[1762895432021,0.05361246,103060.0,103050.0,0.84259927]
[1762895432620,0.05461246,103060.0,103050.0,0.80789733]
[1762895432816,0.05461246,103060.0,103050.0,0.74021316]
[1762895433224,0.05661246,103060.0,103050.0,0.74021316]
[1762895434408,0.05661246,103060.0,103050.0,0.73541316]
[1762895434612,0.05661246,103060.0,103050.0,0.7701151]
[1762895434613,0.01113246,103060.0,103050.0,0.7701151]
[1762895435113,0.0048,103070.0,103060.0,0.0970658]
[1762895435313,0.0048,103070.0,103060.0,0.39602091]
[1762895435512,0.01298,103080.0,103070.0,0.0970564]
[1762895435715,0.01298,103080.0,103070.0,0.77478873]
[1762895436020,0.01298,103100.0,103090.0,0.0970376]
[1762895436222,0.05846,103100.0,103090.0,0.74010374]
[1762895436421,0.05846,103100.0,103090.0,1.74679151]
[1762895436616,0.05846,103100.0,103090.0,1.9673176]
[1762895436812,0.05846,103100.0,103090.0,2.21410911]
[1762895437013,0.05461246,103100.0,103090.0,2.21410911]
[1762895437219,0.05941433,103110.0,103100.0,0.0970282]
[1762895437523,0.05941433,103110.0,103100.0,0.34381971]
[1762895437917,0.05941433,103110.0,103100.0,0.71405971]
[1762895438331,0.06041433,103110.0,103100.0,0.71405971]
[1762895438628,0.06141433,103110.0,103100.0,0.71405971]
[1762895438923,0.01298,103100.0,103080.0,0.36997422]
[1762895439224,0.05846,103090.0,103080.0,0.49338761]
[1762895439420,0.05846,103090.0,103080.0,2.20938449]
[1762895439623,0.05846,103090.0,103080.0,2.20458449]
[1762895439815,0.05846,103090.0,103080.0,1.86074598]
[1762895440012,0.05846,103090.0,103080.0,1.74779151]
[1762895440212,0.05846,103090.0,103080.0,0.71503851]
[1762895440617,0.05846,103090.0,103080.0,1.84583851]
[1762895440818,0.1554976,103090.0,103080.0,1.502]
[1762895441017,0.1554976,103090.0,103080.0,1.8722]
[1762895441427,0.1554976,103090.0,103080.0,1.502]
[1762895441618,0.1554976,103090.0,103080.0,0.001]
[1762895441820,0.15065006,103090.0,103080.0,0.002]
[1762895442020,0.15065006,103090.0,103080.0,0.099047]
[1762895442021,0.04876679,103090.0,103080.0,0.099047]
[1762895442223,0.04876679,103090.0,103080.0,0.35565851]
[1762895442729,0.14580439,103090.0,103080.0,0.35565851]
[1762895443225,0.14580439,103090.0,103080.0,0.25861151]
[1762895443432,0.14580439,103090.0,103080.0,0.002]
[1762895443633,0.14580439,103090.0,103080.0,0.099047]
[1762895443822,0.14580439,103090.0,103080.0,0.002]
[1762895444222,0.05846,103080.0,103070.0,0.4770301]
[1762895444421,0.05846,103080.0,103070.0,0.74501624]
[1762895445127,0.155507,103080.0,103070.0,0.74501624]
[1762895445328,0.155507,103080.0,103070.0,1.63486473]
[1762895445528,0.155507,103080.0,103070.0,0.002]
[1762895446531,0.155507,103080.0,103070.0,0.1039664]
[1762895446824,0.14581379,103080.0,103070.0,0.1059664]
[1762895447333,0.14581379,103080.0,103070.0,0.00791]
[1762895447518,0.04876679,103080.0,103070.0,0.02252]
[1762895447718,0.04876679,103080.0,103070.0,0.36536791]
[1762895447928,0.04876679,103080.0,103070.0,0.36436791]
[1762895448232,0.03626,103090.0,103080.0,0.126267]
[1762895448429,0.03626,103090.0,103080.0,0.37305851]
[1762895449025,0.05846,103090.0,103080.0,0.36825851]
[1762895449227,0.05846,103090.0,103080.0,0.36345851]
[1762895449426,0.05846,103090.0,103080.0,0.37305851]
[1762895449621,0.06046,103090.0,103080.0,0.37305851]
[1762895450218,0.06146,103090.0,103080.0,0.37305851]
[1762895450428,0.06146,103090.0,103080.0,0.39905314]
[1762895451524,0.05176679,103090.0,103080.0,0.39905314]
[1762895452326,0.14880439,103090.0,103080.0,0.39905314]
[1762895452724,0.05176679,103090.0,103080.0,0.05521463]
[1762895452924,0.14880439,103090.0,103080.0,0.04060463]
[1762895453122,0.14880439,103090.0,103080.0,0.03683]
[1762895453926,0.14880439,103090.0,103080.0,0.124277]
[1762895455727,0.14880439,103090.0,103080.0,0.02723]
[1762895456224,0.14395685,103090.0,103080.0,0.124277]
[1762895456432,0.15239118,103090.0,103080.0,0.15027163]
[1762895458629,0.15239118,103090.0,103080.0,0.14547163]
[1762895458830,0.15239118,103090.0,103080.0,0.05841463]
[1762895460034,0.15239118,103090.0,103080.0,0.15546163]
[1762895460935,0.52247118,103090.0,103080.0,0.02599463]
[1762895461134,0.52247118,103090.0,103070.0,0.02599463]
[1762895461135,0.152697,103080.0,103070.0,0.02599463]
[1762895461434,0.152697,103080.0,103070.0,0.0970564]
[1762895461641,0.152697,103080.0,103070.0,0.1166964]
[1762895461838,0.05565,103080.0,103070.0,0.40912254]
[1762895462143,0.05588,103090.0,103080.0,0.03928]
[1762895462440,0.05572598,103100.0,103090.0,0.1363176]
[1762895462640,0.02114598,103100.0,103090.0,0.42279861]
[1762895462942,0.52147955,103110.0,103100.0,0.1363081]
[1762895463129,0.52147955,103110.0,103100.0,0.02613005]
[1762895463333,0.51663576,103110.0,103100.0,0.02613005]
[1762895463533,0.52143576,103110.0,103100.0,0.02613005]
[1762895463732,0.52143576,103110.0,103100.0,0.02133005]
[1762895464137,0.52143576,103110.0,103100.0,0.14048825]
[1762895464332,0.52143576,103110.0,103100.0,0.04346005]
[1762895464641,0.52143576,103110.0,103100.0,0.16343825]
[1762895464838,0.52143576,103110.0,103100.0,0.02133005]
[1762895465032,0.52243576,103110.0,103100.0,0.02133005]
[1762895465237,0.52343576,103110.0,103100.0,0.02133005]
[1762895465837,0.52343576,103110.0,103100.0,0.04346005]
[1762895466033,0.52343576,103110.0,103100.0,0.13568825]
[1762895466234,0.51858822,103110.0,103100.0,0.03866005]
[1762895467144,0.51858822,103110.0,103100.0,0.13568815]
[1762895467643,0.51858822,103110.0,103100.0,0.15863815]
[1762895467945,0.51858822,103110.0,103100.0,0.06161005]
[1762895468134,0.51858822,103110.0,103100.0,0.15863815]
[1762895468335,0.51374255,103110.0,103100.0,0.15863815]
[1762895468539,0.52679255,103110.0,103100.0,0.15383815]
[1762895470740,0.52679255,103110.0,103100.0,0.14903815]
[1762895470939,0.52194501,103110.0,103100.0,0.14903815]
[1762895471143,0.49864488,103110.0,103100.0,0.14903815]
[1762895471646,0.49864488,103110.0,103100.0,0.00693005]
[1762895471847,0.49864488,103110.0,103100.0,0.05201005]
[1762895472035,0.49864488,103110.0,103100.0,0.14903825]
[1762895473144,0.49379921,103110.0,103100.0,0.14903825]
[1762895473341,0.49379921,103110.0,103100.0,0.14423825]
[1762895473542,0.1594687,103110.0,103100.0,0.14423825]
[1762895473751,0.0278,103110.0,103100.0,0.38837978]
[1762895473941,0.0068,103110.0,103100.0,0.38837978]
[1762895474147,0.0068,103110.0,103100.0,0.43841333]
[1762895474645,0.0494,103110.0,103100.0,0.2422413]
[1762895474947,0.0494,103110.0,103100.0,0.43841333]
[1762895475146,0.1464187,103110.0,103100.0,0.43841333]
[1762895475349,0.1594687,103110.0,103100.0,0.43841323]
[1762895475546,0.0494,103110.0,103100.0,0.43361323]
[1762895475746,0.04455246,103110.0,103100.0,0.43361323]
[1762895476047,0.04455246,103110.0,103100.0,0.38144963]
[1762895476443,0.04455246,103110.0,103100.0,0.43361323]
[1762895476846,0.14157116,103110.0,103100.0,0.43361323]
[1762895477146,0.01319598,103120.0,103110.0,0.0970187]
[1762895477347,0.01319598,103120.0,103110.0,0.85936276]
[1762895477545,0.01319598,103120.0,103110.0,0.66319073]
[1762895478153,0.00350652,103120.0,103110.0,0.66319073]
[1762895478355,0.002,103120.0,103110.0,0.65839073]
[1762895478542,0.01774597,103140.0,103130.0,0.0969999]
[1762895478742,0.06034597,103140.0,103130.0,0.71542432]
[1762895479253,0.05010834,103140.0,103130.0,0.71542432]
[1762895479445,0.05010834,103140.0,103130.0,0.75019551]
[1762895479645,0.05010834,103140.0,103130.0,0.65367561]
[1762895479853,0.05010834,103140.0,103130.0,0.50229109]
[1762895480050,0.05010834,103140.0,103130.0,0.69846312]
[1762895480357,0.05010834,103140.0,103130.0,0.70046312]
[1762895480659,0.05010834,103140.0,103130.0,0.32234312]
[1762895480851,0.0452608,103140.0,103130.0,0.32234312]
[1762895481448,0.1422513,103140.0,103130.0,0.02717119]
[1762895481652,0.1422513,103140.0,103130.0,0.001]
[1762895481850,0.1422513,103140.0,103130.0,0.0989999]
[1762895482257,0.0452608,103140.0,103130.0,0.29517193]
[1762895483245,0.03557134,103140.0,103130.0,0.29517193]
[1762895483449,0.03557134,103140.0,103130.0,0.29037193]
[1762895485350,0.13256184,103140.0,103130.0,0.29037193]
[1762895485554,0.13256184,103140.0,103130.0,0.28557193]
[1762895485752,0.13256184,103140.0,103130.0,0.28077193]
[1762895485953,0.0307238,103140.0,103130.0,0.28077193]
[1762895486257,0.0526938,103140.0,103130.0,0.28077193]
[1762895486660,0.1496843,103140.0,103130.0,0.28077193]
[1762895488255,0.13999484,103140.0,103130.0,0.28119193]
[1762895488453,0.13999484,103140.0,103130.0,0.27639193]
[1762895489455,0.04300434,103140.0,103130.0,0.27639193]
[1762895490658,0.04300434,103140.0,103130.0,0.26679193]
[1762895490848,0.0381568,103140.0,103130.0,0.26679193]
[1762895493366,0.05133734,103140.0,103130.0,0.0658199]
[1762895493560,0.05133734,103140.0,103130.0,0.26199193]
[1762895494261,0.01640319,103140.0,103130.0,0.0722899]
[1762895494460,0.03837319,103140.0,103130.0,0.26846193]
[1762895494661,0.05111319,103140.0,103130.0,0.0722899]
[1762895494861,0.14810369,103140.0,103130.0,0.16371275]
[1762895495063,0.14810369,103140.0,103130.0,0.26071265]
[1762895495864,0.14810369,103140.0,103130.0,0.1433999]
[1762895496062,0.14325615,103140.0,103130.0,0.1433999]
[1762895496672,0.14325615,103140.0,103130.0,0.30022265]
[1762895496673,0.04626565,103140.0,103130.0,0.30022265]
[1762895496874,0.04626565,103140.0,103130.0,0.30507265]
[1762895497973,0.05758,103130.0,103120.0,0.35258542]
[1762895498174,0.05758,103130.0,103120.0,0.30037303]
[1762895498373,0.14973423,103130.0,103120.0,0.30037303]
[1762895498574,0.05273433,103130.0,103120.0,0.29557303]
[1762895498974,0.05273433,103130.0,103120.0,0.1434043]
[1762895499172,0.14973423,103130.0,103120.0,0.1454043]
[1762895499973,0.14973423,103130.0,103120.0,0.1434043]
[1762895500176,0.51961423,103130.0,103120.0,0.0464]
[1762895500569,0.51961423,103130.0,103120.0,0.02312]
[1762895500770,0.1545893,103120.0,103110.0,0.68645364]
[1762895500978,0.14974176,103120.0,103110.0,0.70957364]
[1762895501377,0.14974176,103120.0,103110.0,0.51347818]
[1762895501988,0.14974176,103120.0,103110.0,0.14555818]
[1762895502173,0.14974176,103120.0,103110.0,0.04854598]
[1762895502372,0.14974176,103120.0,103110.0,0.14556468]
[1762895502570,0.15471778,103140.0,103130.0,0.0464]
[1762895502870,0.15471778,103140.0,103130.0,0.1433999]
[1762895503179,0.1418493,103120.0,103110.0,0.03744598]
[1762895503376,0.1545893,103120.0,103110.0,0.04754598]